bitfinex/quotes_BTCUSD_20250607
["timestamp","ask_amount","ask_price","bid_price","bid_amount"]
[1749284700422,0.01781347,105070.0,105060.0,1.23730975]
[1749284701266,0.01781516,105070.0,105060.0,1.23730975]
[1749284701686,4e-05,105070.0,105060.0,1.23730975]
[1749284701892,0.01783054,105070.0,105060.0,1.23730975]
[1749284702109,0.01783226,105070.0,105060.0,1.23730975]
[1749284702338,4e-05,105070.0,105060.0,1.80120517]
[1749284702537,0.01783226,105070.0,105060.0,1.81740517]
[1749284702975,4e-05,105070.0,105060.0,2.36590059]
[1749284703635,4e-05,105070.0,105060.0,2.39449759]
[1749284704080,4e-05,105070.0,105060.0,2.73449759]
[1749284706883,4e-05,105070.0,105060.0,3.13449759]
[1749284707781,4e-05,105070.0,105060.0,2.58600217]
[1749284708619,4e-05,105070.0,105060.0,3.13449759]
[1749284709052,4e-05,105070.0,105060.0,2.58600217]
[1749284710042,4e-05,105070.0,105060.0,3.13449759]
[1749284710252,4e-05,105070.0,105060.0,3.18449759]
[1749284711264,4e-05,105070.0,105060.0,3.18049759]
[1749284711469,4e-05,105070.0,105060.0,3.17649759]
[1749284711670,4e-05,105070.0,105060.0,3.18949759]
[1749284713783,4e-05,105070.0,105060.0,3.40419759]
[1749284714640,4e-05,105070.0,105060.0,1.96716675]
[1749284714856,0.03164,105070.0,105060.0,1.8106259]
[1749284715082,0.04115673,105070.0,105060.0,1.4329059]
[1749284715300,0.04115673,105070.0,105060.0,1.2182059]
[1749284715301,0.05067356,105070.0,105060.0,1.2182059]
[1749284715516,0.05067337,105070.0,105060.0,1.5674089]
[1749284715724,0.05067337,105070.0,105060.0,1.20414975]
[1749284715931,0.05067337,105070.0,105060.0,1.5674089]
[1749284716154,0.05067347,105070.0,105060.0,1.58194975]
[1749284716368,0.05067347,105070.0,105060.0,1.1826089]
[1749284716597,0.07922513,105070.0,105060.0,0.84660908]
[1749284716805,0.06019048,105070.0,105060.0,1.23388681]
[1749284717015,0.08750973,105070.0,105060.0,1.23388681]
[1749284717218,0.07922495,105070.0,105060.0,1.22788681]
[1749284717423,0.09702668,105070.0,105060.0,1.22788681]
[1749284717636,0.09702668,105070.0,105060.0,1.23188681]
[1749284717868,0.09702667,105070.0,105060.0,1.23188681]
[1749284718096,0.07922495,105070.0,105060.0,1.23188681]
[1749284718301,0.06970749,105070.0,105060.0,1.23188681]
[1749284719018,0.08750922,105070.0,105060.0,1.23188681]
[1749284719206,0.08750776,105070.0,105060.0,1.23188681]
[1749284719457,0.06970749,105070.0,105060.0,1.23188681]
[1749284719677,0.08750837,105070.0,105060.0,1.23188681]
[1749284719898,0.06970749,105070.0,105060.0,1.23188681]
[1749284720126,0.08750839,105070.0,105060.0,1.23188681]
[1749284720562,0.06970749,105070.0,105060.0,1.23188681]
[1749284722321,0.06970749,105070.0,105060.0,1.23212681]
[1749284723161,0.06019039,105070.0,105060.0,1.23212681]
[1749284723392,0.06970749,105070.0,105060.0,1.23212681]
[1749284723798,0.06019039,105070.0,105060.0,1.23212681]
[1749284724008,0.06970749,105070.0,105060.0,1.23212681]
[1749284728028,0.0697074,105070.0,105060.0,1.23212681]
[1749284730379,0.06019039,105070.0,105060.0,1.23212681]
[1749284730784,0.06970749,105070.0,105060.0,1.23212681]
[1749284731497,0.24102367,105070.0,105060.0,0.6256875]
[1749284731708,0.24102367,105070.0,105060.0,1.0035675]
[1749284731917,0.2588122,105070.0,105060.0,1.0035675]
[1749284732091,0.24102367,105070.0,105060.0,1.0035675]
[1749284733750,0.24102367,105070.0,105060.0,1.0038475]
[1749284735999,0.24102367,105070.0,105060.0,0.9998475]
[1749284736201,0.24102367,105070.0,105060.0,1.0018475]
[1749284736407,0.24102367,105070.0,105060.0,0.9978475]
[1749284736837,0.24102367,105070.0,105060.0,0.9998475]
[1749284742860,0.2504479,105070.0,105060.0,0.9998475]
[1749284743472,0.01894151,105070.0,105060.0,1.00095327]
[1749284743668,0.2092908,105070.0,105060.0,1.00095327]
[1749284743923,0.2092908,105070.0,105060.0,1.00035327]
[1749284744796,0.22709168,105070.0,105060.0,1.00035327]
[1749284745026,0.22709168,105070.0,105060.0,1.00987164]
[1749284745231,0.22709168,105070.0,105060.0,1.00007327]
[1749284745475,0.2270916,105070.0,105060.0,1.00007327]
[1749284746264,0.2092908,105070.0,105060.0,1.19044067]
[1749284746469,0.25819199,105070.0,105060.0,1.19044067]
[1749284746625,0.2403908,105070.0,105060.0,1.19044067]
[1749284746826,0.2403908,105070.0,105060.0,1.19995904]
[1749284747076,0.25819348,105070.0,105060.0,1.19995904]
[1749284747575,0.25819348,105070.0,105060.0,0.92563904]
[1749284747708,0.2403908,105070.0,105060.0,0.92563904]
[1749284747913,0.25819378,105070.0,105060.0,0.92563904]
[1749284748353,0.25819378,105070.0,105060.0,0.91612067]
[1749284749542,0.25819528,105070.0,105060.0,0.92563904]
[1749284749751,0.2403908,105070.0,105060.0,0.92563904]
[1749284750432,0.25819528,105070.0,105060.0,0.92563904]
[1749284750641,0.25819528,105070.0,105060.0,0.91612067]
[1749284750848,0.25819528,105070.0,105060.0,0.92563904]
[1749284751063,0.25819556,105070.0,105060.0,0.92563904]
[1749284751974,0.2403908,105070.0,105060.0,0.92563904]
[1749284752181,0.25819556,105070.0,105060.0,0.92563904]
[1749284753256,0.25819556,105070.0,105060.0,0.91612067]
[1749284753462,0.25819698,105070.0,105060.0,0.93515731]
[1749284753675,0.2403908,105070.0,105060.0,0.93515731]
[1749284754088,0.25819697,105070.0,105060.0,0.93515731]
[1749284754302,0.25819698,105070.0,105060.0,0.91612067]
[1749284754507,0.25819698,105070.0,105060.0,0.92563904]
[1749284754715,0.25819698,105070.0,105060.0,0.92563894]
[1749284754925,0.25819698,105070.0,105060.0,0.92563904]
[1749284755138,0.25819697,105070.0,105060.0,0.91612067]
[1749284755350,0.2403908,105070.0,105060.0,0.92563894]
[1749284755806,0.25820346,105070.0,105060.0,0.92563894]
[1749284756369,0.25820346,105070.0,105060.0,0.93515712]
[1749284756587,0.2403908,105070.0,105060.0,0.93515712]
[1749284756808,0.2403908,105070.0,105060.0,0.92563904]
[1749284757265,0.25820432,105070.0,105060.0,0.93515731]
[1749284757490,0.2403908,105070.0,105060.0,0.93515731]
[1749284757712,0.24310464,105070.0,105060.0,0.93515731]
[1749284758375,0.2092908,105070.0,105060.0,0.93515731]
[1749284758579,0.22712465,105070.0,105060.0,0.93515731]
[1749284758990,0.22712464,105070.0,105060.0,0.93515731]
[1749284759193,0.22712466,105070.0,105060.0,0.93515731]
[1749284759816,0.21770043,105070.0,105060.0,0.93515731]
[1749284760019,0.19986657,105070.0,105060.0,0.93515731]
[1749284760220,0.21770079,105070.0,105060.0,0.93515731]
[1749284760641,0.19986657,105070.0,105060.0,0.93515731]
[1749284760992,0.21770096,105070.0,105060.0,0.93515731]
[1749284761192,0.21770094,105070.0,105060.0,0.94467549]
[1749284761591,0.21770131,105070.0,105060.0,0.94467549]
[1749284761795,0.19986657,105070.0,105060.0,0.94467549]
[1749284761995,0.21770132,105070.0,105060.0,0.92531904]
[1749284762214,0.21770132,105070.0,105060.0,0.93483731]
[1749284762434,0.19986657,105070.0,105060.0,0.94435549]
[1749284762645,0.21770612,105070.0,105060.0,0.94435549]
[1749284763257,0.19986657,105070.0,105060.0,0.94435549]
[1749284763472,0.19986657,105070.0,105060.0,0.93483731]
[1749284763680,0.19986657,105070.0,105060.0,0.92531904]
[1749284763681,0.21770621,105070.0,105060.0,0.92531904]
[1749284763894,0.2177062,105070.0,105060.0,0.92531904]
[1749284764118,0.19986657,105070.0,105060.0,0.93483731]
[1749284764318,0.21770623,105070.0,105060.0,0.94435549]
[1749284764559,0.21770588,105070.0,105060.0,0.94435549]
[1749284764759,0.21770588,105070.0,105060.0,0.95387358]
[1749284765267,0.21770575,105070.0,105060.0,0.95387358]
[1749284765471,0.19986657,105070.0,105060.0,0.95387358]
[1749284765886,0.21770611,105070.0,105060.0,0.57631358]
[1749284766052,0.21770715,105070.0,105060.0,0.95355358]
[1749284766938,0.19986657,105070.0,105060.0,0.95355358]
[1749284767167,0.21770755,105070.0,105060.0,0.95355358]
[1749284767367,0.21770755,105070.0,105060.0,0.57631358]
[1749284767562,0.19986657,105070.0,105060.0,0.92495904]
[1749284767764,0.19986657,105070.0,105060.0,0.93447722]
[1749284767968,0.19986657,105070.0,105060.0,0.92495904]
[1749284768349,0.21770786,105070.0,105060.0,0.93447722]
[1749284768536,0.21770785,105070.0,105060.0,0.93447722]
[1749284768685,0.21770796,105070.0,105060.0,0.95351331]
[1749284768889,0.19986657,105070.0,105060.0,0.95351331]
[1749284769068,0.21770796,105070.0,105060.0,0.95351331]
[1749284769274,0.19986657,105070.0,105060.0,0.95351331]
[1749284769886,0.21770796,105070.0,105060.0,0.95351331]
[1749284770481,0.2177079,105070.0,105060.0,0.95351331]
[1749284771111,0.21770792,105070.0,105060.0,0.95351331]
[1749284771315,0.21770825,105070.0,105060.0,0.95351331]
[1749284771690,0.19986657,105070.0,105060.0,0.93435703]
[1749284771934,0.21770952,105070.0,105060.0,0.93435703]
[1749284772113,0.21770953,105070.0,105060.0,0.93435703]
[1749284772357,0.21770948,105070.0,105060.0,0.92483894]
[1749284772551,0.0368772,105070.0,105060.0,0.94387512]
[1749284772774,0.01903429,105070.0,105060.0,0.94387512]
[1749284772978,0.02855175,105070.0,105060.0,0.95339303]
[1749284773390,0.04639546,105070.0,105060.0,0.95339303]
[1749284773825,0.04639557,105070.0,105060.0,0.95339303]
[1749284774447,0.04639645,105070.0,105060.0,0.95339303]
[1749284774655,0.04639748,105070.0,105060.0,0.95339303]
[1749284775351,0.03688002,105070.0,105060.0,0.95339303]
[1749284775567,0.03688002,105070.0,105060.0,0.97821085]
[1749284776028,0.03688009,105070.0,105060.0,0.97821085]
[1749284776455,0.01903429,105070.0,105060.0,0.97821085]
[1749284776599,0.03688009,105070.0,105060.0,0.97821085]
[1749284776805,0.03688011,105070.0,105060.0,0.97821085]
[1749284777538,0.04639757,105070.0,105060.0,0.96869303]
[1749284777735,0.04639757,105070.0,105060.0,0.95917512]
[1749284777939,0.04639757,105070.0,105060.0,0.94965712]
[1749284778140,0.04639763,105070.0,105060.0,0.96869321]
[1749284778547,0.04639763,105070.0,105060.0,0.97821112]
[1749284779315,0.04639769,105070.0,105060.0,0.97821112]
[1749284779775,0.02855175,105070.0,105060.0,0.96869285]
[1749284779998,0.04639769,105070.0,105060.0,0.96869285]
[1749284780197,0.03688023,105070.0,105060.0,0.96869285]
[1749284780503,0.04639775,105070.0,105060.0,0.96869285]
[1749284780631,0.04639774,105070.0,105060.0,0.96869285]
[1749284781283,0.04639715,105070.0,105060.0,0.96869285]
[1749284781485,0.03806839,105070.0,105060.0,0.98509285]
[1749284781689,0.05591446,105070.0,105060.0,0.98509285]
[1749284781910,0.05591446,105070.0,105060.0,0.98489285]
[1749284782169,0.05591451,105070.0,105060.0,0.98489285]
[1749284782782,0.05591451,105070.0,105060.0,0.56679494]
[1749284782972,0.05591451,105070.0,105060.0,0.94363494]
[1749284783438,0.05591311,105070.0,105060.0,0.94363494]
[1749284783626,0.0380683,105070.0,105060.0,0.96875276]
[1749284783778,0.05591322,105070.0,105060.0,0.96875285]
[1749284784189,0.05591322,105070.0,105060.0,0.95923494]
[1749284784401,0.05591322,105070.0,105060.0,0.96875285]
[1749284784628,0.05591171,105070.0,105060.0,0.96875285]
[1749284784891,0.246261,105070.0,105060.0,0.96875285]
[1749284786858,0.22841759,105070.0,105060.0,0.95923494]
[1749284787061,0.0380683,105070.0,105060.0,0.96875276]
[1749284787300,0.22841759,105070.0,105060.0,0.97523494]
[1749284787504,0.24626046,105070.0,105060.0,0.97523494]
[1749284787709,0.23674372,105070.0,105060.0,0.97523494]
[1749284787854,0.22722671,105070.0,105060.0,0.95619885]
[1749284788257,0.22722672,105070.0,105060.0,0.96571694]
[1749284788474,0.20938385,105070.0,105060.0,0.97523494]
[1749284788882,0.22722672,105070.0,105060.0,0.97523494]
[1749284789152,0.22722671,105070.0,105060.0,0.97523494]
[1749284789306,0.20938385,105070.0,105060.0,0.97523494]
[1749284789512,0.22722673,105070.0,105060.0,0.97523494]
[1749284790293,0.22722643,105070.0,105060.0,0.97523494]
[1749284790492,0.20938385,105070.0,105060.0,0.97523494]
[1749284790687,0.22722643,105070.0,105060.0,0.97523494]
[1749284790934,0.20938385,105070.0,105060.0,0.97523494]
[1749284791386,0.22722643,105070.0,105060.0,0.97523494]
[1749284791970,0.22722634,105070.0,105060.0,0.97523494]
[1749284792530,0.20938385,105070.0,105060.0,0.96571694]
[1749284792737,0.22722663,105070.0,105060.0,0.96571694]
[1749284792969,0.22722672,105070.0,105060.0,0.97523494]
[1749284793972,0.22722671,105070.0,105060.0,0.97523494]
[1749284794612,0.20938385,105070.0,105060.0,0.97523494]
[1749284794840,0.22722671,105070.0,105060.0,0.97523494]
[1749284795253,0.22722353,105070.0,105060.0,0.97523494]
[1749284795613,0.20938385,105070.0,105060.0,0.97523494]
[1749284796465,0.22722353,105070.0,105060.0,0.97523494]
[1749284797803,0.20938385,105070.0,105060.0,0.97523494]
[1749284798236,0.22722353,105070.0,105060.0,0.97523494]
[1749284798777,0.22722204,105070.0,105060.0,0.97523494]
[1749284799687,0.22722202,105070.0,105060.0,0.97523494]
[1749284800301,0.22722202,105070.0,105060.0,0.98475285]
[1749284800480,0.22722132,105070.0,105060.0,0.98475285]
[1749284800686,0.22722132,105070.0,105060.0,0.97523494]
[1749284801243,0.20938385,105070.0,105060.0,0.97523494]
[1749284801443,0.2272213,105070.0,105060.0,0.97523494]
[1749284801799,0.22722134,105070.0,105060.0,0.97523494]
[1749284802301,0.22722134,105070.0,105060.0,0.98475285]
[1749284802685,0.22722135,105070.0,105060.0,0.97523494]
[1749284803283,0.20938385,105070.0,105060.0,0.97523494]
[1749284803510,0.22722135,105070.0,105060.0,0.97523494]
[1749284804238,0.22722126,105070.0,105060.0,0.97523494]
[1749284804430,0.20938385,105070.0,105060.0,0.97523494]
[1749284805019,0.22722126,105070.0,105060.0,0.97523494]
[1749284806237,0.22722177,105070.0,105060.0,0.97523494]
[1749284807149,0.20938385,105070.0,105060.0,0.97523494]
[1749284807355,0.22722177,105070.0,105060.0,0.97523494]
[1749284807608,0.22722183,105070.0,105060.0,0.96503694]
[1749284808137,0.20938385,105070.0,105060.0,0.96503694]
[1749284808366,0.22722183,105070.0,105060.0,0.96503694]
[1749284808576,0.20938385,105070.0,105060.0,0.96503694]
[1749284808792,0.22722182,105070.0,105060.0,0.96503694]
[1749284809622,0.20938385,105070.0,105060.0,0.96503694]
[1749284809826,0.22722296,105070.0,105060.0,0.96503694]
[1749284810162,0.22722297,105070.0,105060.0,0.96503694]
[1749284812578,0.22722378,105070.0,105060.0,0.96503694]
[1749284813496,0.20938385,105070.0,105060.0,0.96503694]
[1749284813755,0.22722378,105070.0,105060.0,0.96503694]
[1749284814239,0.22722378,105070.0,105060.0,0.97455494]
[1749284814716,0.03687449,105070.0,105060.0,0.98407276]
[1749284814924,0.02855202,105070.0,105060.0,0.97455494]
[1749284815132,0.02855202,105070.0,105060.0,0.98407276]
[1749284815334,0.04639259,105070.0,105060.0,0.98407276]
[1749284815896,0.04639259,105070.0,105060.0,0.97455494]
[1749284816690,0.04639364,105070.0,105060.0,0.98407285]
[1749284816892,0.02855202,105070.0,105060.0,0.98407285]
[1749284817099,0.04639364,105070.0,105060.0,0.98407285]
[1749284818384,0.02855202,105070.0,105060.0,0.98407285]
[1749284818783,0.04639364,105070.0,105060.0,0.98407285]
[1749284819001,0.02855202,105070.0,105060.0,0.98407285]
[1749284819235,0.04639364,105070.0,105060.0,0.98407285]
[1749284819871,0.0463953,105070.0,105060.0,0.98407285]
[1749284820113,0.0463953,105070.0,105060.0,0.99359067]
[1749284820311,0.0463953,105070.0,105060.0,0.98407285]
[1749284820517,0.02855202,105070.0,105060.0,0.98407285]
[1749284820901,0.04639579,105070.0,105060.0,0.98407285]
[1749284821109,0.04639595,105070.0,105060.0,0.98407285]
[1749284821968,0.23675088,105070.0,105060.0,0.97455494]
[1749284822174,0.21890131,105070.0,105060.0,0.97455494]
[1749284822597,0.23675088,105070.0,105060.0,0.97455494]
[1749284823261,0.22723369,105070.0,105060.0,0.96503694]
[1749284823709,0.22723366,105070.0,105060.0,0.96503694]
[1749284824137,0.22723329,105070.0,105060.0,0.97455494]
[1749284824358,0.22723329,105070.0,105060.0,0.33979379]
[1749284824359,0.55606675,105070.0,105060.0,0.33979379]
[1749284824567,0.61229711,105070.0,105060.0,0.62823379]
[1749284824789,0.61898978,105070.0,105060.0,0.25207379]
[1749284825006,0.61898978,105070.0,105060.0,0.62823379]
[1749284825238,0.61898875,105070.0,105060.0,0.62823379]
[1749284825457,0.61898875,105070.0,105060.0,0.62623379]
[1749284825458,0.61897678,105070.0,105060.0,0.62623379]
[1749284825716,0.61894556,105070.0,105060.0,0.62423379]
[1749284825939,0.59444962,105070.0,105060.0,0.62423379]
[1749284826373,0.61894556,105070.0,105060.0,0.62423379]
[1749284826826,0.6472153,105070.0,105060.0,0.62423379]
[1749284827277,0.64053459,105070.0,105060.0,0.62423379]
[1749284827502,0.6472023,105070.0,105060.0,0.62423379]
[1749284827768,0.64052514,105070.0,105060.0,0.62423379]
[1749284827969,0.62939652,105070.0,105060.0,0.62423379]
[1749284828179,0.64720224,105070.0,105060.0,0.62423379]
[1749284828854,0.64720063,105070.0,105060.0,0.62423379]
[1749284829084,0.62939618,105070.0,105060.0,0.62423379]
[1749284829312,0.64052431,105070.0,105060.0,0.62423379]
[1749284829532,0.64720213,105070.0,105060.0,0.62423379]
[1749284829757,0.62271936,105070.0,105060.0,0.62423379]
[1749284829978,0.64052518,105070.0,105060.0,0.62423379]
[1749284830185,0.64720215,105070.0,105060.0,0.24807379]
[1749284830389,0.64720225,105070.0,105060.0,0.62423379]
[1749284830797,0.62271936,105070.0,105060.0,0.62423379]
[1749284831004,0.64720079,105070.0,105060.0,0.62423379]
[1749284831214,0.62271936,105070.0,105060.0,0.62423379]
[1749284831433,0.62939635,105070.0,105060.0,0.62423379]
[1749284831649,0.64052469,105070.0,105060.0,0.62423379]
[1749284831885,0.62939462,105070.0,105060.0,0.62423379]
[1749284832098,0.6471958,105070.0,105060.0,0.62423379]
[1749284832518,0.62271936,105070.0,105060.0,0.62423379]
[1749284833010,0.64052079,105070.0,105060.0,0.62423379]
[1749284833232,0.64719634,105070.0,105060.0,0.62423379]
[1749284833450,0.64719721,105070.0,105060.0,0.62423379]
[1749284833695,0.64719696,105070.0,105060.0,0.62423379]
[1749284834312,0.62939374,105070.0,105060.0,0.62423379]
[1749284834524,0.6405177,105070.0,105060.0,0.62423379]
[1749284834731,0.64051823,105070.0,105060.0,0.62423379]
[1749284834928,0.62271936,105070.0,105060.0,0.62423379]
[1749284835145,0.62939393,105070.0,105060.0,0.62423379]
[1749284835375,0.64719287,105070.0,105060.0,0.62423379]
[1749284835598,0.64719167,105070.0,105060.0,0.62423379]
[1749284835822,0.6405171,105070.0,105060.0,0.62423379]
[1749284836030,0.64719125,105070.0,105060.0,0.62423379]
[1749284836458,0.62271936,105070.0,105060.0,0.62423379]
[1749284836684,0.64719009,105070.0,105060.0,0.62423379]
[1749284836906,0.64051625,105070.0,105060.0,0.62423379]
[1749284837133,0.64719009,105070.0,105060.0,0.62423379]
[1749284837339,0.64718957,105070.0,105060.0,0.62423379]
[1749284837969,0.64051574,105070.0,105060.0,0.62423379]
[1749284838174,0.64718938,105070.0,105060.0,0.62423379]
[1749284838394,0.64051574,105070.0,105060.0,0.62423379]
[1749284838784,0.629393,105070.0,105060.0,0.62423379]
[1749284838991,0.6471894,105070.0,105060.0,0.62423379]
[1749284839390,0.64718941,105070.0,105060.0,0.62423379]
[1749284839774,0.62939301,105070.0,105060.0,0.62423379]
[1749284840020,0.64718944,105070.0,105060.0,0.62423379]
[1749284840178,0.64718946,105070.0,105060.0,0.62423379]
[1749284840556,0.64718997,105070.0,105060.0,0.62423379]
[1749284841516,0.64719021,105070.0,105060.0,0.62423379]
[1749284841956,0.6293934,105070.0,105060.0,0.62423379]
[1749284842164,0.64719085,105070.0,105060.0,0.62423379]
[1749284843348,0.64719129,105070.0,105060.0,0.62423379]
[1749284843577,0.62939384,105070.0,105060.0,0.62423379]
[1749284843778,0.64051799,105070.0,105060.0,0.62423379]
[1749284843990,0.62271936,105070.0,105060.0,0.62423379]
[1749284844197,0.64051799,105070.0,105060.0,0.62423379]
[1749284844405,0.64719566,105070.0,105060.0,0.62423379]
[1749284844615,0.62939471,105070.0,105060.0,0.62423379]
[1749284844837,0.62271936,105070.0,105060.0,0.62423379]
[1749284845044,0.64719566,105070.0,105060.0,0.62423379]
[1749284845640,0.64052031,105070.0,105060.0,0.62423379]
[1749284845829,0.64719566,105070.0,105060.0,0.62423379]
[1749284846035,0.62271936,105070.0,105060.0,0.62423379]
[1749284846367,0.64052031,105070.0,105060.0,0.62423379]
[1749284846562,0.62271936,105070.0,105060.0,0.62423379]
[1749284847625,0.62939642,105070.0,105060.0,0.62423379]
[1749284847822,0.62271936,105070.0,105060.0,0.62423379]
[1749284848459,0.6472029,105070.0,105060.0,0.62423379]
[1749284848850,0.62271936,105070.0,105060.0,0.62423379]
[1749284849635,0.62271936,105070.0,105060.0,0.33579379]
[1749284849840,0.74762647,105070.0,105060.0,0.33579379]
[1749284850047,0.78563665,105070.0,105060.0,0.62423379]
[1749284850449,0.79231669,105070.0,105060.0,0.62423379]
[1749284851271,0.78563665,105070.0,105060.0,0.62423379]
[1749284851679,0.78563665,105070.0,105060.0,0.24807379]
[1749284851680,5.86012887,105070.0,105060.0,0.24807379]
[1749284851883,5.93535501,105070.0,105060.0,0.62423379]
[1749284852112,5.9464873,105070.0,105060.0,0.62423379]
[1749284852260,5.95316647,105070.0,105060.0,0.62423379]
[1749284852732,5.94648719,105070.0,105060.0,0.62423379]
[1749284852864,5.95321656,105070.0,105060.0,0.62423379]
[1749284853249,5.92867582,105070.0,105060.0,0.62423379]
[1749284853462,5.94652363,105070.0,105060.0,0.62423379]
[1749284853659,5.95321656,105070.0,105060.0,0.62423379]
[1749284853895,5.95321656,105070.0,105060.0,0.37731379]
[1749284855246,5.93536892,105070.0,105060.0,0.37731379]
[1749284855448,5.98183321,105070.0,105060.0,0.37731379]
[1749284855660,6.48013321,105070.0,105060.0,0.37731379]
[1749284856438,6.48006543,105070.0,105060.0,0.37731379]
[1749284858008,6.48006292,105070.0,105060.0,0.37731379]
[1749284858268,6.48006197,105070.0,105060.0,0.37731379]
[1749284858472,6.48006196,105070.0,105060.0,0.37731379]
[1749284858677,6.4230516,105070.0,105060.0,0.37731379]
[1749284859758,6.42305159,105070.0,105060.0,0.37731379]
[1749284859971,6.39858587,105070.0,105060.0,0.37731379]
[1749284860192,6.40525821,105070.0,105060.0,0.37731379]
[1749284860623,6.42305098,105070.0,105060.0,0.37731379]
[1749284861295,6.42304998,105070.0,105060.0,0.37731379]
[1749284861698,6.40525754,105070.0,105060.0,0.37731379]
[1749284861891,6.42304867,105070.0,105060.0,0.37731379]
[1749284863036,6.39858587,105070.0,105060.0,0.37731379]
[1749284863267,6.40525652,105070.0,105060.0,0.37731379]
[1749284863503,6.41637501,105070.0,105060.0,0.37731379]
[1749284863666,6.41637504,105070.0,105060.0,0.37731379]
[1749284863867,6.39858587,105070.0,105060.0,0.37731379]
[1749284864268,6.41637607,105070.0,105060.0,0.37731379]
[1749284864713,6.40525719,105070.0,105060.0,0.37731379]
[1749284864892,6.41637607,105070.0,105060.0,0.37731379]
[1749284865091,6.42304739,105070.0,105060.0,0.37731379]
[1749284865286,6.41637607,105070.0,105060.0,0.37731379]
[1749284865536,6.42304739,105070.0,105060.0,0.37731379]
[1749284865738,6.39858587,105070.0,105060.0,0.37731379]
[1749284865956,6.41637607,105070.0,105060.0,0.37731379]
[1749284866189,6.39858587,105070.0,105060.0,0.37731379]
[1749284866619,6.42305179,105070.0,105060.0,0.37731379]
[1749284866977,6.41637927,105070.0,105060.0,0.37731379]
[1749284867392,6.42305274,105070.0,105060.0,0.37731379]
[1749284867751,6.41638019,105070.0,105060.0,0.37731379]
[1749284867920,6.42305306,105070.0,105060.0,0.37731379]
[1749284868305,6.39858587,105070.0,105060.0,0.37731379]
[1749284868915,6.40525874,105070.0,105060.0,0.37731379]
[1749284869120,6.41638019,105070.0,105060.0,0.37731379]
[1749284869822,6.39858587,105070.0,105060.0,0.37731379]
[1749284870061,6.41638019,105070.0,105060.0,0.37731379]
[1749284870520,6.42305629,105070.0,105060.0,0.37731379]
[1749284871364,6.42306491,105070.0,105060.0,0.37731379]
[1749284871491,6.40526197,105070.0,105060.0,0.37731379]
[1749284871693,6.42306491,105070.0,105060.0,0.37731379]
[1749284872137,6.40526197,105070.0,105060.0,0.37731379]
[1749284872306,6.42306491,105070.0,105060.0,0.37731379]
[1749284872515,6.41638881,105070.0,105060.0,0.37731379]
[1749284872878,6.42306491,105070.0,105060.0,0.37731379]
[1749284873058,6.42306508,105070.0,105060.0,0.37731379]
[1749284873288,6.42312588,105070.0,105060.0,0.37731379]
[1749284873533,6.42312038,105070.0,105060.0,0.37731379]
[1749284873927,6.42312039,105070.0,105060.0,0.37731379]
[1749284874051,6.4052771,105070.0,105060.0,0.37731379]
[1749284874259,6.42312039,105070.0,105060.0,0.37731379]
[1749284874667,6.39132039,105070.0,105060.0,0.37731379]
[1749284875096,6.38462915,105070.0,105060.0,0.37731379]
[1749284875382,6.39132038,105070.0,105060.0,0.37731379]
[1749284875510,6.38462915,105070.0,105060.0,0.37731379]
[1749284875729,6.44832633,105070.0,105060.0,0.37731379]
[1749284875905,6.42379182,105070.0,105060.0,0.37731379]
[1749284876106,6.44832633,105070.0,105060.0,0.37731379]
[1749284876757,1.34832633,105070.0,105060.0,0.37731379]
[1749284876983,1.30198836,105070.0,105060.0,0.40881379]
[1749284877466,1.31981569,105070.0,105060.0,0.40881379]
[1749284877706,1.31981571,105070.0,105060.0,0.40881379]
[1749284878669,1.31981551,105070.0,105060.0,0.40881379]
[1749284878866,1.31981544,105070.0,105060.0,0.40881379]
[1749284879091,1.29529681,105070.0,105060.0,0.40881379]
[1749284879261,1.31981544,105070.0,105060.0,0.40881379]
[1749284879457,1.30198371,105070.0,105060.0,0.40881379]
[1749284879674,1.2913042,105070.0,105060.0,0.40881379]
[1749284879906,1.29130441,105070.0,105060.0,0.40881379]
[1749284880465,1.34162346,105070.0,105060.0,0.40881379]
[1749284880642,1.34162342,105070.0,105060.0,0.40881379]
[1749284880841,1.33047864,105070.0,105060.0,0.40881379]
[1749284881073,1.34162333,105070.0,105060.0,0.40881379]
[1749284881283,1.34831014,105070.0,105060.0,0.40881379]
[1749284881487,1.34831014,105070.0,105060.0,0.39351379]
[1749284881697,1.34831028,105070.0,105060.0,0.39351379]
[1749284882105,1.34162449,105070.0,105060.0,0.39351379]
[1749284882352,1.3483118,105070.0,105060.0,0.39351379]
[1749284882621,1.32379182,105070.0,105060.0,0.39351379]
[1749284883085,1.34831196,105070.0,105060.0,0.39351379]
[1749284883291,1.33377111,105070.0,105060.0,0.39351379]
[1749284883504,1.27676516,105070.0,105060.0,0.40871379]
[1749284883686,1.27676464,105070.0,105060.0,0.40871379]
[1749284883940,1.28746918,105070.0,105060.0,0.40871379]
[1749284884142,1.27668549,105070.0,105060.0,0.40871379]
[1749284884559,1.25885304,105070.0,105060.0,0.40871379]
[1749284884777,1.27668549,105070.0,105060.0,0.40871379]
[1749284885450,1.27668485,105070.0,105060.0,0.40871379]
[1749284885670,1.27668488,105070.0,105060.0,0.40871379]
[1749284885888,1.26999788,105070.0,105060.0,0.40871379]
[1749284886123,1.27668488,105070.0,105060.0,0.40871379]
[1749284886333,1.26999788,105070.0,105060.0,0.40871379]
[1749284886546,1.27668472,105070.0,105060.0,0.40871379]
[1749284886755,1.27668468,105070.0,105060.0,0.40871379]
[1749284887182,1.26999706,105070.0,105060.0,0.40871379]
[1749284887401,1.27668384,105070.0,105060.0,0.40871379]
[1749284887603,1.27668368,105070.0,105060.0,0.40871379]
[1749284887759,1.2766842,105070.0,105060.0,0.40871379]
[1749284888758,1.25885278,105070.0,105060.0,0.40871379]
[1749284888969,1.25216587,105070.0,105060.0,0.40871379]
[1749284889411,1.25885278,105070.0,105060.0,0.40871379]
[1749284889637,1.27668455,105070.0,105060.0,0.40871379]
[1749284890269,1.2766846,105070.0,105060.0,0.40871379]
[1749284890552,1.25885283,105070.0,105060.0,0.40871379]
[1749284890713,1.27668473,105070.0,105060.0,0.40871379]
[1749284890915,1.25216587,105070.0,105060.0,0.40871379]
[1749284891117,1.26999777,105070.0,105060.0,0.40871379]
[1749284891317,1.27668527,105070.0,105060.0,0.40871379]
[1749284891922,1.25885337,105070.0,105060.0,0.40871379]
[1749284892113,1.2766867,105070.0,105060.0,0.40871379]
[1749284892313,1.2699992,105070.0,105060.0,0.40871379]
[1749284892514,1.27668669,105070.0,105060.0,0.40871379]
[1749284893972,1.2766905,105070.0,105060.0,0.40871379]
[1749284894170,1.27669194,105070.0,105060.0,0.40871379]
[1749284895033,1.27000301,105070.0,105060.0,0.40871379]
[1749284895180,1.27669205,105070.0,105060.0,0.40871379]
[1749284895596,1.25216587,105070.0,105060.0,0.40871379]
[1749284895802,1.27669236,105070.0,105060.0,0.40871379]
[1749284896270,1.27000332,105070.0,105060.0,0.40871379]
[1749284896433,1.25885491,105070.0,105060.0,0.40871379]
[1749284896640,1.27669272,105070.0,105060.0,0.40871379]
[1749284896834,1.25885491,105070.0,105060.0,0.40871379]
[1749284897045,1.27669272,105070.0,105060.0,0.40871379]
[1749284897258,1.27000368,105070.0,105060.0,0.40871379]
[1749284897552,1.27669261,105070.0,105060.0,0.40871379]